Cogmind - Beta 11 X8 @@@ ROGUE MODE // 2021.12.11 @ 23:22:48 Player: theMouse Result: Destroyed by X-62 Marksman with Pulse Rifle Performance ------------- Evolutions (2) 1000 Regions Visited (6) 1200 Robots Destroyed (20) 100 Value Destroyed (407) 407 Prototype IDs (2) 40 Alien Tech Used (0) 0 Bonus (62) 62 TOTAL SCORE: 2809 Bonus ------- High Alert Combat Kills 35 Follower Combat Kills 27 Cogmind --------- Core Integrity 0/550 Matter 184/300 Energy 49/100 System Corruption 20% Temperature Cool (12) Movement Core (50) Location -8/Storage Parts ------- > --- POWER (1) -------- (None) > --- PROPULSION (4) --- (None) > --- UTILITY (4) ------ Advanced Weight Redist. System Improved Light Armor Plating > --- WEAPON (2) ------- Improved Heavy Machine Gun Improved Heavy Machine Gun > --- INVENTORY (5) ---- Sensor Array Experimental Sensor Array Improved Heavy Machine Gun Peak State ------------ > --- POWER ------------ Light Deuterium Engine > --- PROPULSION ------- Light Treads Light Treads Flight Unit Flight Unit > --- UTILITY ---------- Small Storage Unit Advanced Weight Redist. System Sensor Array Advanced Targeting Computer > --- WEAPON ----------- Improved Heavy Machine Gun Improved Heavy Machine Gun > --- INVENTORY -------- Light Deuterium Engine Light Deuterium Engine Sensor Array Experimental Sensor Array Improved Heavy Machine Gun Grenade Launcher [Rating: 29] Favorites ----------- Power Light Ion Engine Engine Light Ion Engine Power Core Nuclear Core Propulsion Flight Unit Treads Light Treads Leg Aluminum Leg Flight Unit Flight Unit Utility Sensor Array Device Sensor Array Storage Small Storage Unit Processor Advanced Targeting Computer Protection Improved Light Armor Plating Weapon Small Laser Energy Gun Small Laser Energy Cannon Heavy Particle Cannon Ballistic Gun Assault Rifle Launcher Grenade Launcher Build | -11 -10 -10 -9 -9 -8 -8 ------- Run | Scr Mat Min Mat Min Mat Sto Slots Evolved 4 | . . . 2 . 2 . Power . | . . . . . . . Propulsion 2 | . . . 1 . 1 . Utility 2 | . . . 1 . 1 . Weapon . | . . . . . . . Parts Attached 38 | . 1 1 4 . 4 28 Power 6 | . . . . . 1 5 Engine 3 | . . . . . . 3 Core 3 | . . . . . 1 2 Reactor . | . . . . . . . Propulsion 13 | . . . 3 . 1 9 Treads 5 | . . . . . . 5 Leg . | . . . . . . . Wheel . | . . . . . . . Hover . | . . . . . . . Flight 8 | . . . 3 . 1 4 Utility 12 | . 1 1 1 . 2 7 Device 9 | . 1 1 1 . 2 4 Storage . | . . . . . . . Processor 1 | . . . . . . 1 Hackware . | . . . . . . . Protection 2 | . . . . . . 2 Artifact . | . . . . . . . Weapon 7 | . . . . . . 7 Energy Gun . | . . . . . . . Energy Cannon 1 | . . . . . . 1 Ballistic Gun 5 | . . . . . . 5 Ballistic Cannon . | . . . . . . . Launcher 1 | . . . . . . 1 Special Weapon . | . . . . . . . Impact Weapon . | . . . . . . . Slashing Weapon . | . . . . . . . Piercing Weapon . | . . . . . . . Special Melee Weapon . | . . . . . . . Unidentified Prototypes 1 | . . . . . . 1 Parts Lost 20 | . . . . . . 20 Power 3 | . . . . . . 3 Propulsion 9 | . . . . . . 9 Utility 5 | . . . . . . 5 Weapon 3 | . . . . . . 3 Highest Loss Streak 12 | . . . . . . 12 Average Slot Usage (%) 91 | . 98 100 88 88 90 83 Engine 9 | . 14 14 11 11 . 7 Core 1 | . . . . . 9 1 Treads 3 | . . . . . . 6 Leg 12 | . 28 28 . . . . Flight 13 | . . . 33 33 36 21 Device 17 | . 12 14 19 22 27 19 Storage 11 | . 14 14 11 11 9 8 Processor 2 | . . . . . . 4 Energy Gun 8 | . 14 14 11 11 9 1 Ballistic Gun 10 | . 14 14 2 . . 8 Naked Turns . | . . . . . . . Heaviest Build 20 | 11 12 12 12 12 16 20 Greatest Support 49 | 20 20 20 12 12 25 49 Greatest Overweight (x) 1 | . . . . . . 1 Average Overweight (x) . | . . . . . . . Largest Inventory Capacity 8 | 8 8 8 8 8 8 8 Average Capacity 7 | 8 8 8 8 8 8 7 Most Carried 8 | 5 8 8 7 7 8 8 Average Carried 7 | 5 6 7 6 7 7 7 Final Capacity 8 | 8 8 8 8 8 8 5 Final Carried 8 | 4 8 8 7 7 8 3 Class Distribution -------------------- 67% | Mutant 20% | Scavenger-Mutant 12% | Scavenger-Sprinter Dominant Class ---------------- Mutant | -10/Materials Mutant | -10/Mines Mutant | -9/Materials Mutant | -9/Mines Scavenger-Sprinter | -8/Materials Scavenger-Mutant | -8/Storage Resources | -11 -10 -10 -9 -9 -8 -8 ----------- Run | Scr Mat Min Mat Min Mat Sto Matter Collected 677 | 177 . 37 . . . 463 Remotely . | . . . . . . . Salvage Created 470 | . 50 37 . . . 383 Parts 44 | . 3 6 . . . 35 Haulers Intercepted . | . . . . . . . Recyclers Shooed . | . . . . . . . Parts Field Recycled . | . . . . . . . Retrieved Matter . | . . . . . . . Parts Self-Destructed . | . . . . . . . Prevented . | . . . . . . . Kills | -11 -10 -10 -9 -9 -8 -8 ------- Run | Scr Mat Min Mat Min Mat Sto Combat Hostiles Destroyed 19 | . 3 3 . . . 13 Guns 19 | . 3 3 . . . 13 Classes Destroyed 4 | . 1 . . . . 3 Builder 1 | . . . . . . 1 Swarmer 13 | . 3 3 . . . 7 Grunt 1 | . . . . . . 1 Sentry 5 | . . . . . . 5 Best Kill Streak 7 | . 3 3 . . . 7 Combat Bots Only 6 | . 3 3 . . . 6 Max Kills in Single Turn 2 | . 2 1 . . . 2 Gunslinging 1 | . 1 . . . . . Exploded . | . . . . . . . Melee . | . . . . . . . Uniques/NPCs Destroyed . | . . . . . . . Combat | -11 -10 -10 -9 -9 -8 -8 -------- Run | Scr Mat Min Mat Min Mat Sto Damage Taken 2761 | . 192 132 29 9 . 2399 Core 688 | . 76 33 14 . . 565 Absorbed by Shields . | . . . . . . . Core Remaining (%) 84 | 100 . 56 . 96 . . Volleys Fired 79 | . 11 8 . . . 60 Largest 2 | . 2 2 . . . 2 Hottest 75 | . 60 60 . . . 75 Shots Fired 125 | . 22 16 . . . 87 Gun 120 | . 22 16 . . . 82 Cannon 4 | . . . . . . 4 Launcher 1 | . . . . . . 1 Special . | . . . . . . . Kinetic 84 | . 11 8 . . . 65 Thermal 40 | . 11 8 . . . 21 Explosive 1 | . . . . . . 1 Electromagnetic . | . . . . . . . Robot Hit Streak 22 | . 6 5 . . . 22 Robot Miss Streak 4 | . 4 2 . . . 2 Penetration Max . | . . . . . . . Secondary Targets 2 | . 1 . . . . 1 Max Gunslinging Chain 1 | . 1 . . . . 1 Shots Hit Robots 70 | . 12 8 . . . 50 Core Hits 25 | . 4 3 . . . 18 Critical Kills . | . . . . . . . Critical Parts Destroyed . | . . . . . . . Critical Strikes . | . . . . . . . Melee Attacks . | . . . . . . . Impact . | . . . . . . . Slashing . | . . . . . . . Piercing . | . . . . . . . Sneak Attacks . | . . . . . . . Combat Hostiles . | . . . . . . . Follow-up Attacks . | . . . . . . . Damage Inflicted 1313 | . 173 89 . . . 1051 Guns 1304 | . 173 89 . . . 1042 Cannons . | . . . . . . . Explosions 9 | . . . . . . 9 Melee . | . . . . . . . Ramming . | . . . . . . . Kinetic 1132 | . 100 35 . . . 997 Thermal 172 | . 73 54 . . . 45 Explosive 9 | . . . . . . 9 Electromagnetic . | . . . . . . . Impact . | . . . . . . . Slashing . | . . . . . . . Piercing . | . . . . . . . Highest Corruption 20 | . . . . . . 20 Average Corruption 3 | . . . . . . 3 Corruption Purged . | . . . . . . . Effects 2 | . . . . . . 2 Message Errors 1 | . . . . . . 1 Heat Flow Errors 1 | . . . . . . 1 Overload Shots . | . . . . . . . Overflow Damage . | . . . . . . . Projectiles . | . . . . . . . Explosions . | . . . . . . . Melee . | . . . . . . . Knockbacks . | . . . . . . . Impact . | . . . . . . . Kinetic . | . . . . . . . Secondary . | . . . . . . . Self-Inflicted Damage 45 | . . . . . . 45 Shots 1 | . . . . . . 1 Rammed . | . . . . . . . Targets Rammed . | . . . . . . . Kicked . | . . . . . . . Crushed . | . . . . . . . Highest Temperature 165 | . . . . . . 165 Average Temperature 47 | . . . . . . 47 Received Heat Transfer 666 | . . . 18 . . 648 Siege Activations . | . . . . . . . Robots Corrupted . | . . . . . . . Combat Hostiles . | . . . . . . . Parts Fried . | . . . . . . . Impact Corruptions . | . . . . . . . Robots Melted . | . . . . . . . Combat Hostiles . | . . . . . . . Parts Melted 1 | . . 1 . . . . Heat Transferred 400 | . 175 125 . . . 100 Parts Sabotaged . | . . . . . . . Parts Stolen . | . . . . . . . Parts Stripped . | . . . . . . . Power Chain Reactions . | . . . . . . . Missiles Intercepted . | . . . . . . . Alert | -11 -10 -10 -9 -9 -8 -8 ------- Run | Scr Mat Min Mat Min Mat Sto Peak Influence 505 | . 79 100 115 44 16 505 Initial 44 | . . 30 39 44 16 6 Average 113 | . 23 37 61 44 16 218 Maximum Alert Level 2 | . . . . . . 2 Low Security (%) 73 | 100 100 100 100 100 100 39 Level 1 22 | . . . . . . 50 Level 2 4 | . . . . . . 9 Level 3 . | . . . . . . . Level 4 . | . . . . . . . Level 5 . | . . . . . . . High Security . | . . . . . . . Max Security . | . . . . . . . Squads Dispatched 6 | . 1 . 1 . . 4 Investigation . | . . . . . . . Extermination . | . . . . . . . Reinforcement 4 | . 1 . 1 . . 2 Assault 2 | . . . . . . 2 Garrison . | . . . . . . . Intercept . | . . . . . . . Construction Impeded . | . . . . . . . Haulers Reinforced . | . . . . . . . Active Scanning Responses . | . . . . . . . Cargo Convoy Interrupts . | . . . . . . . Stealth | -11 -10 -10 -9 -9 -8 -8 --------- Run | Scr Mat Min Mat Min Mat Sto Distress Signals 1 | . . . 1 . . . Communications Jammed . | . . . . . . . Distress Signals . | . . . . . . . Times Spotted 59 | . 4 3 10 3 . 39 Peak Tracking Total 11 | . 3 3 8 3 . 11 Tactical Retreats 5 | . . . 1 . . 4 Traps | -11 -10 -10 -9 -9 -8 -8 ------- Run | Scr Mat Min Mat Min Mat Sto Traps Triggered 3 | . . . . . . 3 Indirectly . | . . . . . . . Trap Hack Attempts . | . . . . . . . Triggered . | . . . . . . . Disarmed . | . . . . . . . Reprogrammed . | . . . . . . . Reused . | . . . . . . . Traps Extracted . | . . . . . . . Installed . | . . . . . . . Triggered . | . . . . . . . Machines | -11 -10 -10 -9 -9 -8 -8 ---------- Run | Scr Mat Min Mat Min Mat Sto Machines Disabled . | . . . . . . . Max in Single Turn . | . . . . . . . Machines Sabotaged . | . . . . . . . Garrisons Compromised . | . . . . . . . Overloaded Fab Kills . | . . . . . . . Hacking | -11 -10 -10 -9 -9 -8 -8 --------- Run | Scr Mat Min Mat Min Mat Sto Machines Accessed 13 | . 5 . 2 . 1 5 Terminals 7 | . 3 . . . . 4 Fabricators . | . . . . . . . Repair Stations 1 | . . . 1 . . . Recycling Units 4 | . 2 . . . 1 1 Scanalyzers 1 | . . . 1 . . . Garrison Access . | . . . . . . . Total Hacks 39 | . 17 . 7 . 3 12 Successful 20 | . 11 . 2 . 2 5 Failed 19 | . 6 . 5 . 1 7 Catastrophic 2 | . . . . . . 2 Database Lockouts . | . . . . . . . Manual 2 | . . . . . . 2 Terminals 22 | . 11 . . . . 11 Fabricators . | . . . . . . . Repair Stations 3 | . . . 3 . . . Recycling Units 10 | . 6 . . . 3 1 Scanalyzers 4 | . . . 4 . . . Garrison Access . | . . . . . . . Terminal Hacks 10 | . 6 . . . . 4 Robot Schematic 1 | . . . . . . 1 Branch Access Points 1 | . . . . . . 1 Emergency Access Points 1 | . 1 . . . . . Terminal Index 1 | . 1 . . . . . Fabricator Index 1 | . . . . . . 1 Alert Level 1 | . 1 . . . . . Locate Traps 2 | . 2 . . . . . Hauler Manifests 1 | . . . . . . 1 Zone Layout 1 | . 1 . . . . . Fabricator Hacks . | . . . . . . . Repair Station Hacks . | . . . . . . . Recycling Unit Hacks 8 | . 5 . . . 2 1 Process 2 | . 2 . . . . . Report Inventory 4 | . 2 . . . 1 1 Retrieve Matter 1 | . 1 . . . . . Retrieve Components 1 | . . . . . 1 . Scanalyzer 2 | . . . 2 . . . Insert Component 1 | . . . 1 . . . Analyze 1 | . . . 1 . . . Garrison Access Hacks . | . . . . . . . Unauthorized Hacks . | . . . . . . . Terminals . | . . . . . . . Fabricators . | . . . . . . . Repair Stations . | . . . . . . . Recycling Units . | . . . . . . . Scanalyzers . | . . . . . . . Garrison Access . | . . . . . . . Data Cores Recovered . | . . . . . . . Used . | . . . . . . . Hacking Detections 10 | . 2 . 2 . 1 5 Full Trace Events 1 | . . . . . . 1 Feedback Events . | . . . . . . . Feedback Blocked . | . . . . . . . Robot Schematics Acquired 1 | . . . . . . 1 Robots Built . | . . . . . . . Authchips . | . . . . . . . Time . | . . . . . . . Total Robot Build Rating . | . . . . . . . Part Schematics Acquired 1 | . . . 1 . . . Parts Built . | . . . . . . . Authchips . | . . . . . . . Time . | . . . . . . . Total Part Build Rating . | . . . . . . . Parts Repaired . | . . . . . . . Time . | . . . . . . . Parts Recycled . | . . . . . . . Recycled Matter 13 | . 13 . . . . . Retrieved Matter 9 | . 9 . . . . . Retrieved Components 3 | . . . . . 3 . Parts Scanalyzed 1 | . . . 1 . . . Part Schematics Acquired 1 | . . . 1 . . . Parts Damaged 1 | . . . 1 . . . Bothacking | -11 -10 -10 -9 -9 -8 -8 ------------ Run | Scr Mat Min Mat Min Mat Sto Used RIF Installer . | . . . . . . . Robots Hacked . | . . . . . . . Non-combat . | . . . . . . . Combat . | . . . . . . . Robot Hacks Applied . | . . . . . . . Relay Couplers Released . | . . . . . . . Fabnet Peak Effective % . | . . . . . . . Robots Rewired . | . . . . . . . Allies Hacked . | . . . . . . . Hacks Repelled . | . . . . . . . Allies | -11 -10 -10 -9 -9 -8 -8 -------- Run | Scr Mat Min Mat Min Mat Sto Total Allies 2 | . . . . . . 2 Largest Group 2 | . . . . . . 2 Highest-Rated Group 62 | . . . . . . 62 Highest-Rated Ally 31 | . . . . . . 31 Total Orders . | . . . . . . . Ally Attacks 13 | . . . . . . 13 Total Damage 235 | . . . . . . 235 Kills 1 | . . . . . . 1 Allies Corrupted . | . . . . . . . Allies Melted 1 | . . . . . . 1 Intel | -11 -10 -10 -9 -9 -8 -8 ------- Run | Scr Mat Min Mat Min Mat Sto Robot Analysis Total . | . . . . . . . Derelict Logs Recovered 1 | . . 1 . . . . Drone Launches . | . . . . . . . Drone Recoveries . | . . . . . . . Exploration | -11 -10 -10 -9 -9 -8 -8 ------------- Run | Scr Mat Min Mat Min Mat Sto Turns Passed 1214 | 1 255 287 45 5 88 533 Spaces Moved 1031 | 1 177 205 116 15 98 419 Core . | . . . . . . . Treads 25 | . . . . . . 25 Legs 383 | 1 177 205 . . . . Wheels . | . . . . . . . Hover . | . . . . . . . Flight 623 | . . . 116 15 98 394 Fastest Speed 31 | 120 120 120 34 34 31 31 Average Speed 81 | 120 120 120 34 34 31 73 Slowest Speed 160 | 120 120 120 34 34 31 160 Overloaded Moves . | . . . . . . . Propulsion Burnouts . | . . . . . . . Robots Hopped . | . . . . . . . Cave-ins Triggered 3 | . . . . . . 3 Exploration Rate (%) 26 | 2 41 42 15 7 15 65 Regions Visited 6 Branch Regions 3 Pre-discovered Areas 1 | . . 1 . . . . Known Exits Taken . | . . . . . . . Unknown Exits Taken 6 | 1 1 1 1 1 1 . Scrap Searched . | . . . . . . . Spaces Dug 11 | . . . . . . 11 Terrain Destroyed 15 | . . . . . . 15 Melee . | . . . . . . . Projectile 7 | . . . . . . 7 AOE 8 | . . . . . . 8 Terrain Rammed . | . . . . . . . Walls Destroyed . | . . . . . . . Machines Disabled . | . . . . . . . Actions | -11 -10 -10 -9 -9 -8 -8 --------- Run | Scr Mat Min Mat Min Mat Sto Total 1291 | 2 198 234 120 14 154 569 Wait 79 | . 3 . . . 49 27 Move 1025 | . 176 204 115 14 97 419 Hop . | . . . . . . . Pick Up 39 | . 6 7 . . 3 23 Fast Attach . | . . . . . . . Attach 24 | . 1 . 2 . 3 18 Detach 3 | . . . 1 . 1 1 Swap 14 | . . 1 2 . 1 10 Drop 21 | 2 1 7 . . . 11 Fire 79 | . 11 8 . . . 60 Melee . | . . . . . . . Ram . | . . . . . . . Kick . | . . . . . . . Crush . | . . . . . . . Escape Stasis . | . . . . . . . Rewire 7 | . . 7 . . . . Trap . | . . . . . . . Miscellaneous . | . . . . . . . Route ------- -11/Scrapyard -10/Materials (discovered 2 exits: Mat / [*Min]) -10/Mines (discovered 2 exits: *Mat / [*Exi]) -9/Materials -9/Mines -8/Materials -8/Storage (discovered 1 exit: Rec) History --------- Turn | Location | Event 2 | -11/Scrapyard | Discovered new exit (range 0) 2 | -11/Scrapyard | Entered Materials 107 | -10/Materials | Discovered new exit (range 15) 239 | -10/Materials | Discovered new exit (range 9) 257 | -10/Materials | Entered Mines 293 | -10/Mines | Learned location of Storage (-8) 312 | -10/Mines | Build established: Mutant 333 | -10/Mines | Found a damaged Exp. Sensor Array with a note attached 336 | -10/Mines | Found Prototype Device 451 | -10/Mines | Deemed a non-threat by the Exiles lab entrance 451 | -10/Mines | Discovered new exit (range 5) 487 | -10/Mines | Discovered new exit (range 9) 544 | -10/Mines | Entered Materials 544 | -9/Materials | Evolved 2 slots: Propulsion x1, Utility x1 555 | -9/Materials | Identified Exp. Sensor Array 575 | -9/Materials | Discovered new exit (range 16) 589 | -9/Materials | Entered Mines 592 | -9/Mines | Discovered new exit (range 5) 594 | -9/Mines | Entered Materials 594 | -8/Materials | Evolved 2 slots: Propulsion x1, Utility x1 632 | -8/Materials | Discovered new exit (range 10) 682 | -8/Materials | Entered Storage 938 | -8/Storage | Lost 6 parts (3n1u2w) 1001 | -8/Storage | Identified exit to Recycling 1111 | -8/Storage | Met a pair of Derelict thieves 1206 | -8/Storage | Crushed by falling debris 1206 | -8/Storage | Core integrity fell below 50% 1209 | -8/Storage | Crushed by falling debris 1209 | -8/Storage | Core integrity fell below 20% 1209 | -8/Storage | System corruption reached 10% 1214 | -8/Storage | Crushed by falling debris 1215 | -8/Storage | Destroyed by X-62 Marksman with Pulse Rifle Last Messages --------------- 01206_ Lgt. Treads destroyed. 01206_ System corrupted by crushing effect (+2). 01209_ The unstable cave ceiling collapses. 01209_ Crushed by falling debris. 01209_ Sml. Storage Unit destroyed. 01209_ System corrupted by crushing effect (+2). 01209_ Imp. Light Armor Plating destroyed. 01209_ System corrupted by crushing effect (+5). 01209_ Lgt. Deuterium Engine destroyed. 01209_ System corrupted by crushing effect (+4). 01212_ Slug penetrates Wall. 01212_ Critical hit (Burn: +37). 01213_ WDMZV